Cogmind - Beta 9.1 @@@ ROGUE MODE // 2019.10.31 @ 12:22:08 // Halloween2019/Abominations Player: inSANE Result: Core destroyed Performance ------------- Evolutions (0) 0 Regions Visited (1) 200 Robots Destroyed (5) 25 Value Destroyed (248) 248 Prototype IDs (0) 0 Alien Tech Used (0) 0 Bonus (0) 0 TOTAL SCORE: 473 Bonus ------- None Cogmind --------- Core Integrity 0/250 Matter 300/300 Energy 100/100 System Corruption 1% Temperature Cool (0) Location -10/Materials Parts ------- Power (1) Propulsion (2) Utility (2) Weapon (2) Inventory (4) Ion Engine Light Treads Wheel Small Laser Peak State ------------ Power Ion Engine Propulsion Light Treads Wheel Utility Small Storage Unit Large Storage Unit Weapon Light Assault Rifle Light Assault Rifle Inventory Ion Engine Light Treads Wheel Small Laser [Rating: 7] Favorites ----------- Power Ion Engine Engine Ion Engine Propulsion Light Treads Treads Light Treads Wheel Wheel Utility Small Storage Unit Storage Small Storage Unit Weapon Light Assault Rifle Energy Gun Small Laser Ballistic Gun Light Assault Rifle Build | -11 -10 ------- Run | Scr Mat Slots Evolved . | . . Power . | . . Propulsion . | . . Utility . | . . Weapon . | . . Parts Attached 8 | 6 2 Power 1 | 1 . Engine 1 | 1 . Core . | . . Reactor . | . . Propulsion 2 | 2 . Treads 1 | 1 . Leg . | . . Wheel 1 | 1 . Hover . | . . Flight . | . . Utility 2 | 1 1 Device . | . . Storage 2 | 1 1 Processor . | . . Hackware . | . . Protection . | . . Artifact . | . . Weapon 3 | 2 1 Energy Gun 1 | 1 . Energy Cannon . | . . Ballistic Gun 2 | 1 1 Ballistic Cannon . | . . Launcher . | . . Special Weapon . | . . Impact Weapon . | . . Slashing Weapon . | . . Piercing Weapon . | . . Special Melee Weapon . | . . Unidentified Prototypes . | . . Parts Lost 3 | . 3 Power . | . . Propulsion 1 | . 1 Utility . | . . Weapon 2 | . 2 Highest Loss Streak 3 | . 3 Average Slot Usage (%) 92 | . 92 Engine 13 | . 13 Treads 13 | . 13 Wheel 13 | . 13 Storage 25 | . 25 Ballistic Gun 25 | . 25 Naked Turns 6 | . 6 Heaviest Build 27 | 11 27 Greatest Support 20 | 10 20 Greatest Overweight (x) 2 | 1 2 Average Overweight (x) 1 | . 1 Largest Inventory Capacity 12 | 6 12 Average Capacity 10 | 5 10 Most Carried 4 | 4 4 Average Carried 3 | 1 4 Final Capacity 6 | 6 4 Final Carried 4 | 4 4 Class Distribution -------------------- 100% | Mutant Dominant Class ---------------- Mutant | -10/Materials Resources | -11 -10 ----------- Run | Scr Mat Matter Collected 322 | 219 103 Remotely . | . . Salvage Created 250 | . 250 Parts 18 | . 18 Haulers Intercepted . | . . Recyclers Shooed . | . . Parts Field Recycled . | . . Retrieved Matter . | . . Parts Self-Destructed . | . . Prevented . | . . Kills | -11 -10 ------- Run | Scr Mat Combat Hostiles Destroyed 5 | . 5 Guns 5 | . 5 Classes Destroyed 2 | . 2 Grunt 2 | . 2 Abomination 3 | . 3 Best Kill Streak 2 | . 2 Combat Bots Only 2 | . 2 Max Kills in Single Turn 1 | . 1 Gunslinging . | . . Exploded . | . . Melee . | . . Uniques/NPCs Destroyed . | . . Combat | -11 -10 -------- Run | Scr Mat Damage Taken 1073 | . 1073 Core 295 | . 295 Absorbed by Shields . | . . Core Remaining (%) 100 | 100 . Volleys Fired 26 | . 26 Largest 2 | . 2 Hottest 40 | . 40 Shots Fired 52 | . 52 Gun 52 | . 52 Cannon . | . . Launcher . | . . Special . | . . Kinetic 52 | . 52 Thermal . | . . Explosive . | . . Electromagnetic . | . . Robot Hit Streak 19 | . 19 Robot Miss Streak 4 | . 4 Penetration Max . | . . Secondary Targets 3 | . 3 Max Gunslinging Chain 1 | . 1 Shots Hit Robots 44 | . 44 Core Hits 22 | . 22 Critical Hits . | . . Critical Kills . | . . Critical Parts Destroyed . | . . Melee Attacks . | . . Impact . | . . Slashing . | . . Piercing . | . . Sneak Attacks . | . . Combat Hostiles . | . . Follow-up Attacks . | . . Damage Inflicted 354 | . 354 Guns 349 | . 349 Cannons . | . . Explosions . | . . Melee . | . . Ramming 5 | . 5 Kinetic 349 | . 349 Thermal . | . . Explosive . | . . Electromagnetic . | . . Impact . | . . Slashing . | . . Piercing . | . . Highest Corruption 1 | . 1 Average Corruption 1 | . 1 Corruption Purged . | . . Overload Shots . | . . Overflow Damage . | . . Projectiles . | . . Explosions . | . . Melee . | . . Knockbacks . | . . Impact . | . . Kinetic . | . . Secondary . | . . Self-Inflicted Damage 2 | . 2 Shots . | . . Rammed 1 | . 1 Targets Rammed 1 | . 1 Kicked . | . . Crushed . | . . Highest Temperature 22 | . 22 Average Temperature 9 | . 9 Received Heat Transfer 156 | . 156 Siege Activations . | . . Robots Corrupted . | . . Combat Hostiles . | . . Parts Fried . | . . Impact Corruptions . | . . Robots Melted . | . . Combat Hostiles . | . . Parts Melted . | . . Heat Transferred . | . . Parts Sabotaged . | . . Parts Stolen . | . . Parts Stripped . | . . Power Chain Reactions . | . . Missiles Intercepted . | . . Alert | -11 -10 ------- Run | Scr Mat Peak Influence 85 | . 85 Average Influence 28 | . 32 Maximum Alert Level . | . . Low Security (%) 100 | . . Level 1 . | . . Level 2 . | . . Level 3 . | . . Level 4 . | . . Level 5 . | . . High Security . | . . Max Security . | . . Squads Dispatched 3 | . 3 Investigation 1 | . 1 Extermination . | . . Reinforcement 1 | . 1 Assault 1 | . 1 Garrison . | . . Intercept . | . . Construction Impeded . | . . Haulers Reinforced . | . . Stealth | -11 -10 --------- Run | Scr Mat Distress Signals 1 | . 1 Communications Jammed . | . . Distress Signals . | . . Times Spotted 14 | . 14 Peak Tracking Total 5 | . 5 Tactical Retreats 2 | . 2 Traps | -11 -10 ------- Run | Scr Mat Traps Triggered . | . . Indirectly . | . . Trap Hack Attempts . | . . Triggered . | . . Disarmed . | . . Reprogrammed . | . . Reused . | . . Traps Extracted . | . . Installed . | . . Triggered . | . . Machines | -11 -10 ---------- Run | Scr Mat Machines Disabled . | . . Max in Single Turn . | . . Machines Sabotaged . | . . Garrisons Compromised . | . . Overloaded Fab Kills . | . . Fab Network Shutdowns . | . . Hacking | -11 -10 --------- Run | Scr Mat Machines Accessed 1 | . 1 Terminals 1 | . 1 Fabricators . | . . Repair Stations . | . . Recycling Units . | . . Scanalyzers . | . . Garrison Access . | . . Total Hacks 4 | . 4 Successful 2 | . 2 Failed 2 | . 2 Catastrophic . | . . Database Lockouts . | . . Manual 2 | . 2 Terminals 4 | . 4 Fabricators . | . . Repair Stations . | . . Recycling Units . | . . Scanalyzers . | . . Garrison Access . | . . Terminal Hacks 1 | . 1 Registered Components 1 | . 1 Fabricator Hacks . | . . Repair Station Hacks . | . . Recycling Unit Hacks . | . . Scanalyzer . | . . Garrison Access Hacks . | . . Unauthorized Hacks 2 | . 2 Terminals 1 | . 1 Botnet 1 | . 1 Fabricators . | . . Repair Stations . | . . Recycling Units . | . . Scanalyzers . | . . Garrison Access . | . . Data Cores Recovered . | . . Used . | . . Hacking Detections 1 | . 1 Full Trace Events . | . . Feedback Events . | . . Feedback Blocked . | . . Robot Schematics Acquired . | . . Robots Built . | . . Matter . | . . Time . | . . Total Robot Build Rating . | . . Part Schematics Acquired . | . . Parts Built . | . . Matter . | . . Time . | . . Total Part Build Rating . | . . Parts Repaired . | . . Time . | . . Parts Recycled . | . . Recycled Matter . | . . Retrieved Matter . | . . Retrieved Components . | . . Parts Scanalyzed . | . . Part Schematics Acquired . | . . Parts Damaged . | . . Bothacking | -11 -10 ------------ Run | Scr Mat Used RIF Installer . | . . Robots Hacked . | . . Non-combat . | . . Combat . | . . Robot Hacks Applied . | . . Relay Couplers Released . | . . Robots Rewired . | . . Allies Hacked . | . . Hacks Repelled . | . . Allies | -11 -10 -------- Run | Scr Mat Total Allies . | . . Largest Group . | . . Highest-Rated Group . | . . Highest-Rated Ally . | . . Total Orders . | . . Ally Attacks . | . . Total Damage . | . . Kills . | . . Allies Corrupted . | . . Allies Melted . | . . Intel | -11 -10 ------- Run | Scr Mat Robot Analysis Total . | . . Derelict Logs Recovered . | . . Drone Launches . | . . Drone Recoveries . | . . Exploration | -11 -10 ------------- Run | Scr Mat Turns Passed 329 | 41 288 Spaces Moved 229 | 33 196 Core 11 | 1 10 Treads 13 | . 13 Legs . | . . Wheels 205 | 32 173 Hover . | . . Flight . | . . Fastest Speed 50 | 50 50 Average Speed 99 | 86 101 Slowest Speed 180 | 90 180 Overloaded Moves . | . . Propulsion Burnouts . | . . Robots Hopped . | . . Cave-ins Triggered . | . . Exploration Rate (%) 14 | 3 26 Regions Visited 1 Branch Regions . Pre-discovered Areas . | . . Known Exits Taken . | . . Unknown Exits Taken 1 | 1 . Scrap Searched . | . . Spaces Dug . | . . Terrain Destroyed . | . . Melee . | . . Projectile . | . . AOE . | . . Actions | -11 -10 --------- Run | Scr Mat Total 284 | 42 242 Wait 17 | . 17 Move 228 | 32 196 Hop . | . . Pick Up 4 | 4 . Fast Attach 7 | 6 1 Attach . | . . Detach . | . . Swap 1 | . 1 Drop . | . . Fire 26 | . 26 Melee . | . . Ram 1 | . 1 Kick . | . . Crush . | . . Escape Stasis . | . . Rewire . | . . Trap . | . . Miscellaneous . | . . Route ------- -11/Scrapyard -10/Materials (discovered 1 exit: [*Mat]) History --------- Turn | Location | Event 22 | -11/Scrapyard | Discovered new exit (range 15) 42 | -11/Scrapyard | Entered Materials 140 | -10/Materials | Discovered new exit (range 16) 314 | -10/Materials | Build established: Mutant 323 | -10/Materials | Core integrity fell below 50% 324 | -10/Materials | Released all parts (4) 330 | -10/Materials | Core integrity fell below 20% 330 | -10/Materials | Core destroyed Last Messages --------------- 00312_ Engulfed by violent ripples tearing at the fabric of space. 00312_ Wheel destroyed. 00313_ Engulfed by violent ripples tearing at the fabric of space. 00317_ Lesser Abomination absorbs Med. Storage Unit. 00324_ Released Lgt. Treads. 00324_ Released Ion Engine. 00324_ Released Sml. Storage Unit. 00324_ Released Lrg. Storage Unit. 00325_ Ion Engine springs to life within a quantum being. 00325_ Slammed into Disintegrating Anomaly. 00326_ Lesser Abomination absorbs Lgt. Treads, Sml. Storage Unit, Sml. Storage Unit, Hover Unit. 00327_ Lesser Abomination absorbs Lrg. Storage Unit. 00328_ Unstable Anomaly suddenly flashes brightly. 00328_ Lesser Abomination absorbs Visual Processing Unit, Hover Unit. 00328_ Engulfed by violent ripples tearing at the fabric of space. 00329_ Unstable Anomaly suddenly flashes brightly. 00329_ Engulfed by violent ripples tearing at the fabric of space. 00330_ Unstable Anomaly suddenly flashes brightly. 00330_ Engulfed by violent ripples tearing at the fabric of space. Map ----- +----------------------------------------------------+ | ?????????????????????????????? | | ?????????????????????????????? | | ??######?????????????????????? | | ?## ##???????????#########? | | ?#! !#???????????# #? | | ?#! #???????????# #? | | ??# #???????????# #? | | ??# #??############## #? | | ??# #### % =% # #? | | ??# =+ % """ = "" # #? | | ??# ##=% """ = T" + +? | | ??# ; ## =""" "" # #? | | ??;;; ;;; ## % =% # #? | | ??# ;AA ?############## #? | | ?## ; ;;#######?????????# #? | | ?# ; ;; #?????????# #? | | ??# ;A;; "" ####??????# ? | | ??# ; ;; Y" """#??????+ | | ?## ;A;; "" T"#??????? " | | ?# ; ;; """#??????? " | | ?##;;n;; ####??????? " | | ??#; ; """ #?????????? | | ??## n/ """ #?????????? | | ???# # """ #?????????? | | ???# # #?????????? ?? | | ??## @ ########??????????????? | | ??# #= #??????????????? | | ??# # """#??????????????? | | ??# + """#??????????????? | | ??# # """#??????????????? | | ??# # #??????????????? | | ??### ######+##??????????????? | | ????# #????# #???????????????? | | ????# #????# #???????????????? | | ????# ?????# #???????????????? | | ????# ????## ##??????????????? | | ????# ##### #??????????????? | | ????# #??????????????? | | ????####### #??????????????? | | ????######## ##??????????????? | | ????# #???????????????? | | ????# #????|??????????? | | ????# #???????????????? | | ????# #???????????????? | | ????# #???????????????? | | ????### #???????????????? | | ??????# #???????????????? | | ??????# #???????????????? | | ??????# #???????????????? | | ####### #???????????????? | +----------------------------------------------------+ Best States ------------- Heat Dissipation 25 Energy Generation 10 Energy Capacity 250 Matter Stores 300 Matter Capacity 300 Sight Range 16 Terrain Scan Density 10 Evasion (%) 50 Recoil Reduction 1 Item Schematics ----------------- None Robot Schematics ------------------ None Fabricated ------------ Nothing Alien Tech Used ----------------- None Achievements -------------- None Challenges ------------ None Game ------ Seed BiometalSwordCasing Manual? 0 Play Time 00:09:41 Cumulative 270.8 hours Start 2019.10.31 @ 12:15:17 End 2019.10.31 @ 12:22:08 Sessions 1 Manual Loads 0 Difficulty Rogue Special Mode Halloween2019/Abominations Game No. 147 Rogue 147 Adventurer 0 Explorer 0 Win Type - Total 4 Types 4/0/0/0/0/0/0 Lore% 69 Gallery% 76 Achievement% 53 Wizard Run 0 Options --------- ASCII 1 Keyboard 1 Movement Numpad Keybinds 1 Fullscreen 1 Font 18/SmallcapsGlow Map View 76x50 Tactical HUD 1 Map Filters NONE Filters NONE Steam 1 RUN: e49e2cd9-fe31-4d93-8f7a-b8db0015d5d7